bitfinex/quotes_ETHUSD_20250611
["timestamp","ask_amount","ask_price","bid_price","bid_amount"]
[1749631272019,1.5366,2776.5,2775.5,19.55298984]
[1749631272226,1.5366,2776.5,2775.3,3.7831178]
[1749631272227,0.18,2775.7,2775.3,3.7831178]
[1749631272401,0.18,2775.7,2775.6,3.06808]
[1749631272600,0.18,2775.7,2775.6,6.84808]
[1749631273116,0.18,2775.7,2775.6,10.45090461]
[1749631273486,0.18,2775.7,2775.6,6.84808]
[1749631273690,0.18,2775.7,2775.6,10.45696929]
[1749631273929,0.18,2775.7,2775.6,6.85414468]
[1749631274217,0.18,2775.7,2775.6,10.45696929]
[1749631274720,0.18,2775.7,2775.6,20.45696929]
[1749631277900,0.18,2775.7,2775.6,16.85414468]
[1749631278195,0.18,2775.7,2775.6,16.85314468]
[1749631278596,0.18,2775.7,2775.6,20.65763043]
[1749631278921,0.18,2775.7,2775.6,20.45596929]
[1749631280314,0.18,2775.7,2775.6,15.66696929]
[1749631280515,1.5366,2776.5,2775.6,16.85014468]
[1749631280825,0.18,2776.0,2775.9,18.384628]
[1749631281031,0.18,2776.0,2775.9,22.49271611]
[1749631281234,0.18,2776.0,2775.9,21.584628]
[1749631281435,0.18,2776.0,2775.9,21.78628081]
[1749631281735,0.18,2776.0,2775.9,21.584628]
[1749631282339,0.18,2776.0,2775.9,22.12236861]
[1749631282637,0.18,2776.0,2775.9,21.584628]
[1749631282809,0.18,2776.0,2775.9,25.47269915]
[1749631283017,0.18,2776.2,2776.1,13.60213968]
[1749631283225,0.18,2776.2,2776.1,32.59236168]
[1749631283407,0.18,2776.2,2776.1,36.36136168]
[1749631283615,0.18,2776.2,2776.1,32.759222]
[1749631283937,1.7134,2776.2,2776.1,11.014]
[1749631284239,1.7134,2776.2,2776.1,1.014]
[1749631284636,12.17550224,2776.2,2776.1,1.014]
[1749631284865,12.17550224,2776.2,2774.8,13.65541849]
[1749631284866,0.55,2776.1,2775.1,10.0]
[1749631285046,2.37036909,2776.0,2774.8,12.93585728]
[1749631285207,1.5362,2775.8,2775.2,1.014]
[1749631285401,1.5362,2775.8,2774.8,9.332]
[1749631285402,1.19983789,2775.7,2774.8,9.332]
[1749631285610,1.19983789,2775.7,2775.3,1.014]
[1749631285802,1.19983789,2775.7,2775.3,11.014]
[1749631286119,1.5735,2775.3,2775.2,3.772]
[1749631286325,1.5735,2775.3,2775.2,0.53790774]
[1749631286541,1.5735,2775.3,2775.2,11.014]
[1749631286905,1.5735,2775.3,2775.2,11.21571423]
[1749631287134,1.5735,2775.3,2775.2,11.55190447]
[1749631287336,1.5735,2775.3,2775.2,11.21571417]
[1749631287540,1.5735,2775.3,2775.2,1.014]
[1749631287736,1.5735,2775.3,2775.2,1.35019365]
[1749631287935,1.5735,2775.3,2775.2,1.014]
[1749631288138,1.5735,2775.3,2775.2,1.21571519]
[1749631288315,1.5735,2775.3,2775.2,1.35019199]
[1749631288516,1.5735,2775.3,2775.2,1.21571564]
[1749631288722,0.18,2775.4,2775.2,1.21571373]
[1749631288918,0.18,2775.4,2775.2,1.014]
[1749631290648,0.85868489,2775.3,2775.2,1.014]
[1749631290847,0.85868489,2775.3,2775.2,1.35019901]
[1749631291014,0.18,2775.4,2775.2,1.35019695]
[1749631291215,0.18,2775.4,2775.2,1.014]
[1749631291548,0.85912042,2775.3,2775.2,1.014]
[1749631292153,2.44625698,2775.3,2775.2,1.014]
[1749631292321,2.70888268,2775.3,2775.2,1.014]
[1749631294569,3.7828289,2775.3,2775.2,1.014]
[1749631295760,2.70888268,2775.3,2775.2,1.014]
[1749631297625,2.70888268,2775.3,2775.2,1.015]
[1749631298441,0.85915698,2775.3,2775.2,1.015]
[1749631301524,5.55915698,2775.3,2775.2,1.015]
[1749631302826,5.55915698,2775.3,2774.8,9.332]
[1749631303028,0.85915698,2775.2,2774.9,1.015]
[1749631303224,0.859379,2775.1,2775.0,1.015]
[1749631303641,1.039379,2775.1,2775.0,1.015]
[1749631304360,0.18,2775.1,2775.0,1.015]
[1749631305564,0.18,2775.1,2775.0,1.35212832]
[1749631305565,1.03950803,2775.1,2775.0,1.35212832]
[1749631305765,1.03950803,2775.1,2775.0,1.015]
[1749631306257,1.03950803,2775.1,2775.0,0.999]
[1749631307340,1.72085346,2775.1,2775.0,0.999]
[1749631307535,1.03950803,2775.1,2775.0,0.999]
[1749631313953,1.04178428,2775.1,2775.0,0.999]
[1749631315162,1.04178428,2775.1,2775.0,10.327]
[1749631319080,2.11901463,2775.1,2775.0,10.327]
[1749631319284,2.59358428,2775.1,2775.0,10.327]
[1749631319439,2.85294271,2775.1,2775.0,10.327]
[1749631319873,2.85294271,2775.1,2774.1,0.55846311]
[1749631319874,2.85294271,2775.1,2774.1,6.27651751]
[1749631320068,1.9403468,2775.0,2774.2,9.14743465]
[1749631320270,0.18,2774.3,2774.2,12.41484636]
[1749631320663,0.18,2774.3,2774.2,15.5404928]
[1749631320976,0.18,2774.3,2773.8,20.40471859]
[1749631321188,2.62876252,2774.6,2774.0,10.0]
[1749631321471,0.18,2774.1,2774.0,3.74]
[1749631321658,0.18,2774.1,2774.0,20.41200266]
[1749631321861,0.18,2774.1,2774.0,20.74922194]
[1749631322053,0.18,2774.1,2774.0,20.41200266]
[1749631322680,0.18,2774.1,2774.0,10.74911973]
[1749631322895,0.18,2774.1,2774.0,20.74911973]
[1749631323293,1.07856252,2774.8,2774.3,16.481291]
[1749631323454,0.86235379,2774.7,2774.5,10.0]
[1749631323652,0.86235379,2774.6,2774.5,10.0]
[1749631323997,1.04235379,2774.6,2774.5,10.0]
[1749631324758,1.04212257,2774.6,2774.5,10.0]
[1749631325156,1.04212257,2774.6,2774.5,10.327]
[1749631325460,2.77230015,2774.6,2774.5,10.327]
[1749631325660,3.84995336,2774.6,2774.5,10.327]
[1749631326870,3.32230015,2774.6,2774.5,10.327]
[1749631327098,9.45954956,2774.6,2774.5,10.327]
[1749631327261,8.02230015,2774.6,2774.5,10.327]
[1749631328494,8.02230015,2774.6,2774.5,9.328]
[1749631328673,10.16181171,2774.6,2774.5,10.327]
[1749631329511,8.02230015,2774.6,2774.5,10.327]
[1749631330077,8.02105261,2774.6,2774.5,10.327]
[1749631331725,10.16056417,2774.6,2774.5,10.327]
[1749631332082,10.16006545,2774.6,2774.5,9.328]
[1749631332279,0.55,2774.1,2773.6,13.066]
[1749631332476,5.56037631,2774.0,2773.7,0.999]
[1749631332723,0.18,2773.8,2773.7,0.999]
[1749631332925,1.04037631,2773.8,2773.7,0.999]
[1749631333773,1.04037631,2773.8,2773.7,1.00234336]
[1749631335822,1.04037631,2773.8,2773.7,0.00334336]
[1749631336016,8.51251394,2773.8,2773.7,0.99034336]
[1749631336188,3.23847631,2773.8,2773.7,0.99034336]
[1749631339023,3.23847631,2773.8,2772.8,0.36677492]
[1749631339209,0.86037631,2773.7,2772.9,0.987]
[1749631339415,3.29852394,2773.6,2773.0,0.987]
[1749631339745,3.29852394,2773.6,2772.2,0.3602]
[1749631339746,0.55,2773.4,2773.1,0.987]
[1749631339918,1.41037631,2773.3,2773.2,0.987]
[1749631340229,1.41037631,2773.3,2772.5,3.734]
[1749631340431,0.18,2772.3,2772.1,9.7860807]
[1749631340648,0.86037631,2773.1,2772.2,3.733]
[1749631340943,0.86037631,2773.1,2772.1,0.6483087]
[1749631340944,0.18,2772.2,2772.1,10.6483087]
[1749631341102,0.18,2772.2,2772.1,0.6483087]
[1749631341429,0.18,2772.2,2771.6,4.11796441]
[1749631341647,1.5717,2772.7,2771.7,3.734]
[1749631341789,1.5717,2772.7,2771.8,10.0]
[1749631341996,0.18,2771.9,2771.8,10.0]
[1749631342632,0.18,2771.9,2771.8,5.8278789]
[1749631342983,0.18,2771.9,2771.8,2.220115]
[1749631343388,0.18,2771.9,2771.7,10.0]
[1749631343793,0.18,2771.9,2771.8,3.734]
[1749631345256,0.18,2771.9,2771.8,14.055]
[1749631346732,0.18,2771.9,2771.8,17.6627639]
[1749631347446,0.18,2771.9,2771.8,14.055]
[1749631348633,0.18,2771.9,2771.8,24.055]
[1749631351251,0.18,2771.9,2771.8,10.322]
[1749631351423,1.7601,2771.9,2771.8,10.322]
[1749631351629,0.18,2771.9,2771.8,10.322]
[1749631352251,0.18,2771.9,2771.8,0.988]
[1749631355251,0.18,2771.9,2771.8,10.325]
[1749631356052,2.3444,2771.9,2771.8,10.325]
[1749631356365,2.57884,2771.9,2771.8,10.325]
[1749631356729,3.43614929,2771.9,2771.8,10.325]
[1749631357856,0.55,2771.8,2770.9,9.338]
[1749631358056,0.1808,2771.1,2771.0,0.988]
[1749631358258,0.55,2771.0,2770.0,3.61001247]
[1749631358427,6.28994718,2770.9,2770.1,0.988]
[1749631358625,6.28994718,2770.9,2770.1,4.59793917]
[1749631358626,0.85804472,2770.9,2770.1,4.59793917]
[1749631358865,0.85804472,2770.9,2770.1,7.63320303]
[1749631359050,1.7405,2771.1,2770.1,7.63320303]
[1749631359252,0.8570392,2771.0,2770.5,3.60936721]
[1749631359569,1.611,2771.6,2770.9,6.28994718]
[1749631360096,1.97109699,2771.6,2771.0,0.988]
[1749631360473,0.1808,2771.1,2771.0,29.94498548]
[1749631360659,0.1808,2771.1,2771.0,39.98993266]
[1749631361044,0.1808,2771.1,2771.0,49.98993266]
[1749631361244,1.07163662,2772.2,2771.3,3.60839805]
[1749631361245,1.6069,2772.2,2771.3,3.60839805]
[1749631361446,11.1165838,2772.4,2770.3,0.34650492]
[1749631361447,0.1808,2771.1,2770.3,0.34650492]
[1749631361647,0.1808,2771.1,2770.5,10.0]
[1749631362175,0.1808,2771.1,2770.6,0.33593708]
[1749631362468,7.95064718,2771.2,2770.7,0.3359264]
[1749631362648,8.4925632,2771.2,2770.8,0.33592715]
[1749631362848,0.1808,2770.6,2770.5,10.0]
[1749631363061,0.1808,2770.6,2770.5,10.3359263]
[1749631363257,0.1808,2770.6,2770.5,10.2015558]
[1749631363455,0.1808,2770.6,2770.5,0.33592634]
[1749631363629,0.1808,2770.6,2770.5,1.32394131]
[1749631363850,0.1808,2770.6,2770.5,0.988]
[1749631364058,0.1808,2770.6,2770.5,1.32396858]
[1749631364283,0.1808,2770.6,2770.5,1.32397433]
[1749631364447,0.1808,2770.6,2770.5,0.988]
[1749631365156,0.1808,2770.6,2770.5,1.32397932]
[1749631365358,0.1808,2770.6,2770.5,0.988]
[1749631366048,0.1808,2770.6,2770.5,1.32398085]
[1749631366261,0.1808,2770.6,2770.5,0.988]
[1749631366484,0.1808,2770.6,2770.1,10.0]
[1749631366786,0.1808,2770.6,2769.9,12.94822074]
[1749631366787,1.5001,2770.1,2769.9,9.338]
[1749631366943,8.34004718,2770.1,2770.0,1.0]
[1749631367148,9.19797347,2770.1,2770.0,1.0]
[1749631367348,9.37877347,2770.1,2770.0,1.0]
[1749631368091,3.08882629,2770.1,2770.0,1.0]
[1749631368299,4.13385828,2770.1,2770.0,1.0]
[1749631371430,11.03872629,2770.1,2770.0,1.001]
[1749631371576,0.1808,2770.1,2770.0,1.001]
[1749631371782,0.1808,2770.1,2770.0,21.93115841]
[1749631372011,0.1808,2770.1,2770.0,19.43114529]
[1749631372187,0.1808,2770.1,2770.0,19.43114185]
[1749631372386,0.1808,2770.1,2770.0,22.90683412]
[1749631372586,0.1808,2770.1,2770.0,22.7052413]
[1749631372824,6.35224645,2771.1,2770.2,3.60980643]
[1749631372825,1.5237,2771.1,2770.2,3.60980643]
[1749631373026,0.85651999,2771.0,2770.3,10.20140751]
[1749631373226,0.1808,2770.3,2770.2,7.36781774]
[1749631373437,0.1808,2770.3,2770.2,37.36781774]
[1749631373732,0.1808,2770.3,2770.2,37.56921517]
[1749631373931,0.1808,2770.3,2770.2,37.36781774]
[1749631374088,0.1808,2770.3,2770.2,37.90487928]
[1749631374427,1.5946,2771.4,2770.5,15.420948]
[1749631374594,0.85682958,2771.3,2770.7,10.0]
[1749631374799,1.5946,2771.4,2770.8,1.001]
[1749631375018,0.1808,2770.9,2770.8,1.001]
[1749631375179,0.1808,2770.9,2770.8,10.344]
[1749631375842,0.1808,2770.9,2770.8,10.67963036]
[1749631376392,0.1808,2770.9,2770.8,10.344]
[1749631376621,0.1808,2770.9,2770.8,15.573]
[1749631377023,0.1808,2770.9,2770.8,15.90862162]
[1749631377435,0.1808,2770.9,2770.8,10.344]
[1749631377628,0.1808,2770.9,2770.8,10.67962041]
[1749631377930,0.1808,2770.9,2770.8,40.6796186]
[1749631378102,0.1808,2770.9,2770.8,10.67961803]
[1749631378428,0.1808,2770.9,2770.8,10.67962999]
[1749631378624,0.1808,2770.9,2770.8,10.67962961]
[1749631378923,0.1808,2770.9,2770.8,13.939875]
[1749631379124,0.1808,2770.9,2770.8,14.27549839]
[1749631379325,0.1808,2770.9,2770.8,13.939875]
[1749631380015,0.1808,2770.9,2770.8,14.27549557]
[1749631380217,0.1808,2770.9,2770.8,14.27549556]
[1749631380417,0.1808,2770.9,2770.8,13.939875]
[1749631380618,0.1808,2770.9,2770.8,24.27550103]
[1749631380833,0.1808,2770.9,2770.8,23.939875]
[1749631381292,0.1808,2770.9,2770.8,24.27550084]
[1749631381492,0.1808,2770.9,2770.8,23.939875]
[1749631381994,0.1808,2770.9,2770.8,24.27550004]
[1749631382190,0.1808,2770.9,2770.8,23.939875]
[1749631382401,0.1808,2770.9,2770.8,24.27549951]
[1749631382623,1.07195001,2771.8,2771.0,40.0]
[1749631382816,1.07195001,2771.8,2771.1,13.753]
[1749631382817,0.85878767,2771.7,2771.1,13.753]
[1749631383015,0.85878767,2771.6,2771.1,13.753]
[1749631383219,1.07195001,2771.9,2771.1,13.753]
[1749631383220,0.1808,2771.2,2771.1,13.753]
[1749631383730,0.1808,2771.2,2771.1,14.08958029]
[1749631383887,0.1808,2771.2,2771.1,13.753]
[1749631384085,0.1808,2771.2,2771.1,17.90020229]
[1749631384340,0.1808,2771.2,2771.1,42.59750129]
[1749631384541,0.1808,2771.2,2771.1,42.39553591]
[1749631384697,0.1808,2771.2,2771.1,42.26090976]
[1749631385039,1.5372,2772.0,2771.4,11.275184]
[1749631385236,0.85892298,2771.9,2771.5,14.728307]
[1749631385534,1.5357,2772.3,2771.7,10.0]
[1749631385743,0.85903528,2772.2,2771.7,10.0]
[1749631385891,0.85903528,2772.1,2771.7,10.0]
[1749631386092,0.18,2771.8,2771.7,10.0]
[1749631386527,0.18,2771.8,2771.7,10.33651752]
[1749631386712,0.18,2771.8,2771.7,10.33651889]
[1749631387034,0.18,2771.8,2771.7,10.0]
[1749631387844,0.18,2771.8,2771.7,10.33652481]
[1749631388030,0.18,2771.8,2771.7,10.0]
[1749631388197,0.18,2771.8,2771.7,10.33652255]
[1749631388535,0.18,2771.8,2771.7,10.0]
[1749631388853,0.18,2771.8,2771.7,10.33651738]
[1749631388995,0.18,2771.8,2771.7,10.0]
[1749631389190,0.18,2771.8,2771.7,10.33651756]
[1749631389395,0.18,2771.8,2771.7,10.0]
[1749631390495,0.18,2771.8,2771.7,0.65128608]
[1749631390700,0.18,2771.8,2771.6,1.001]
[1749631391122,0.18,2771.8,2771.7,1.0]
[1749631391326,0.64714852,2771.8,2771.7,1.0]
[1749631391634,9.87703796,2772.6,2771.7,1.0]
[1749631391635,1.5653,2772.7,2771.8,18.919602]
[1749631391795,1.5653,2772.7,2771.9,13.98349385]
[1749631391995,1.5653,2772.7,2772.0,3.60743547]
[1749631392304,1.5653,2772.7,2771.9,13.64810052]
[1749631392505,1.5653,2772.7,2772.0,3.60744068]
[1749631392830,0.18,2772.0,2771.9,12.01523144]
[1749631393334,0.18,2772.0,2771.6,3.60790931]
[1749631393518,6.2914852,2772.5,2771.7,20.977153]
[1749631393727,0.18,2771.8,2771.7,4.61241571]
[1749631393937,0.18,2771.8,2771.7,8.54862962]
[1749631394527,0.18,2771.8,2771.7,12.15652369]
[1749631395239,0.18,2771.8,2771.7,8.54862962]
[1749631395445,0.18,2771.8,2771.7,0.00457062]
[1749631395613,0.18,2771.8,2771.7,1.00457062]
[1749631396012,0.18,2771.8,2771.7,4.61246469]
[1749631396456,0.18,2771.8,2771.7,35.07346608]
[1749631396616,0.18,2771.8,2771.7,28.97783408]
[1749631396949,0.18,2771.8,2771.7,27.76348508]
[1749631397160,0.18,2771.8,2771.7,26.14135069]
[1749631397362,4.7,2772.5,2772.2,3.60719231]
[1749631397668,4.7,2772.5,2772.2,3.60721085]
[1749631397811,0.18,2772.3,2772.2,3.60721085]
[1749631398015,0.18,2772.3,2772.2,13.60721085]
[1749631399834,0.18,2772.3,2772.2,3.757]
[1749631400539,0.18,2772.3,2772.2,7.36424334]
[1749631401223,0.18,2772.3,2772.2,21.85620134]
[1749631402658,0.18,2772.3,2772.2,18.09920134]
[1749631404052,0.18,2772.3,2772.2,3.60724334]
[1749631404251,0.18,2772.3,2772.2,6.54624334]
[1749631404453,0.18,2772.3,2772.2,2.939]
[1749631404755,0.18,2772.3,2772.2,6.54624334]
[1749631405314,0.18,2772.3,2772.2,2.939]
[1749631405569,0.18,2772.3,2772.2,6.54624334]
[1749631406272,0.18,2772.3,2772.1,7.36130908]
[1749631407364,0.18,2772.3,2772.2,9.337]
[1749631407866,0.18,2772.3,2772.2,10.338]
[1749631408865,4.7,2772.9,2772.3,20.588071]
[1749631409031,0.18,2772.4,2772.2,14.083]
[1749631409365,0.18,2772.4,2772.2,10.338]
[1749631409548,0.18,2772.4,2772.3,3.60711322]
[1749631409754,0.18,2772.4,2772.2,10.338]
[1749631410125,0.18,2772.4,2772.3,13.13506522]
[1749631410470,0.18,2772.4,2772.3,16.88206522]
[1749631411123,0.18,2772.4,2772.3,17.21707161]
[1749631411324,0.18,2772.4,2772.3,6.51807]
[1749631411630,0.18,2772.4,2772.3,7.35411322]
[1749631411960,0.18,2772.4,2772.3,3.747]
[1749631412463,0.18,2772.4,2772.2,14.084]
[1749631412754,0.18,2772.4,2772.3,0.33567049]
[1749631412956,0.18,2772.4,2772.2,14.084]
[1749631414633,0.18,2772.4,2772.3,0.33566713]
[1749631414832,0.18,2772.4,2772.2,14.084]
[1749631415491,0.18,2772.4,2772.3,0.33566815]
[1749631415661,0.18,2772.4,2772.2,14.084]
[1749631415851,0.18,2772.4,2772.2,17.6911811]
[1749631416456,0.18,2772.4,2772.3,0.33566114]
[1749631416692,0.18,2772.4,2772.2,17.6911811]
[1749631416861,0.18,2772.4,2772.2,14.084]
[1749631417556,0.18,2772.4,2772.2,17.69124231]
[1749631417784,0.18,2772.4,2772.3,0.33608354]
[1749631417989,0.18,2772.4,2772.2,17.69124231]
[1749631418891,0.18,2772.4,2772.3,0.33608319]
[1749631419092,0.18,2772.4,2772.3,0.33608302]
[1749631419294,0.18,2772.4,2772.2,17.69124231]
[1749631420875,0.18,2772.4,2772.3,0.33760014]
[1749631421075,0.18,2772.4,2772.3,4.14727326]
[1749631421519,0.18,2772.4,2772.3,19.902975]
[1749631421708,0.18,2772.4,2772.3,12.08882522]
[1749631422413,0.18,2772.4,2772.3,8.481712]
[1749631422591,0.18,2772.4,2772.3,12.42642239]
[1749631422806,2.614966,2773.0,2772.3,13.60711322]
[1749631422975,0.86294825,2772.9,2772.6,6.28839554]
[1749631423313,1.5431,2773.0,2772.6,13.736]
[1749631423314,0.18,2772.7,2772.6,13.736]
[1749631423615,0.18,2772.7,2772.6,3.736]
[1749631424121,0.18,2772.7,2772.6,0.33755868]
[1749631424321,1.04285746,2772.7,2772.6,1.20354544]
[1749631424621,1.04285746,2772.7,2772.6,1.001]
[1749631424786,1.04285746,2772.7,2772.6,1.20354729]
[1749631424977,1.04285746,2772.7,2772.6,1.001]
[1749631425174,1.04285746,2772.7,2772.6,1.3385781]
[1749631425387,0.18,2772.7,2772.6,1.20354493]
[1749631425589,0.18,2772.7,2772.6,1.001]
[1749631425993,0.18,2772.7,2772.6,1.3385707]
[1749631426194,1.04318054,2772.7,2772.6,1.54110784]
[1749631426482,0.18,2772.7,2772.6,1.20354171]
[1749631426832,1.04317631,2772.7,2772.6,1.33856892]
[1749631427137,0.18,2772.7,2772.6,1.001]
[1749631427496,0.18,2772.7,2772.6,14.63211847]
[1749631427702,1.071866,2773.3,2772.8,10.0]
[1749631427905,0.18,2772.9,2772.8,12.64163178]
[1749631428109,0.18,2772.9,2772.8,11.67746978]
[1749631429228,0.18,2772.9,2772.8,8.071007]
[1749631429397,0.18,2772.9,2772.8,3.93825517]
[1749631429594,0.18,2772.9,2772.8,3.736]
[1749631430795,0.18,2772.9,2772.8,3.93825461]
[1749631430994,0.18,2772.9,2772.8,3.736]
[1749631431433,0.18,2772.9,2772.8,3.93825528]
[1749631431631,0.18,2772.9,2772.8,11.34634778]
[1749631432022,0.18,2772.9,2772.8,10.33273478]
[1749631432733,1.6179,2773.5,2772.8,6.92852671]
[1749631432893,0.8619421,2773.4,2772.9,10.0]
[1749631433098,1.6179,2773.5,2773.0,3.736]
[1749631433298,0.18,2773.1,2773.0,3.736]
[1749631433494,0.18,2773.1,2773.0,33.736]
[1749631433700,0.18,2773.1,2773.0,37.54434357]
[1749631433939,0.18,2773.1,2773.0,33.736]
[1749631434097,0.18,2773.1,2773.0,36.52251966]
[1749631434500,0.18,2773.1,2773.0,32.34731366]
[1749631434807,1.6169,2773.8,2773.1,3.60607262]
[1749631435023,0.86149289,2773.7,2773.3,17.853243]
[1749631435223,0.86149289,2773.6,2773.4,0.988]
[1749631435534,1.07751234,2774.0,2773.4,4.59367127]
[1749631435732,0.861189,2773.9,2773.7,10.0]
[1749631435932,1.041189,2773.8,2773.5,3.735]
[1749631436097,1.6169,2774.0,2773.7,36.28839554]
[1749631436298,1.6205,2774.2,2773.8,26.379045]
[1749631436502,1.6205,2774.2,2773.7,30.0]
[1749631436811,0.18,2773.8,2773.7,15.709715]
[1749631437422,0.18,2773.8,2773.7,11.989715]
[1749631437636,0.18,2773.8,2773.7,10.090766]
[1749631437799,0.18,2773.8,2773.7,14.8900491]
[1749631438234,0.18,2773.8,2773.7,15.8054221]
[1749631438621,0.18,2773.8,2773.7,12.20012954]
[1749631438825,0.18,2773.8,2773.7,5.911734]
[1749631439834,0.18,2773.8,2773.7,9.51702656]
[1749631440141,0.18,2773.8,2773.7,5.911734]
[1749631440431,0.18,2773.8,2773.7,15.8054221]
[1749631440798,0.18,2773.8,2773.7,16.14032192]
[1749631441004,0.18,2773.8,2773.7,15.8054221]
[1749631441304,0.18,2773.8,2773.7,16.14032495]
[1749631441526,0.18,2773.8,2773.7,25.8054221]
[1749631441838,0.18,2774.1,2774.0,26.940051]
[1749631442133,0.18,2774.1,2774.0,31.122005]
[1749631442306,0.18,2774.1,2774.0,14.031716]
[1749631442741,0.18,2774.1,2774.0,17.63661866]
[1749631442939,1.6396,2774.8,2774.2,5.391488]
[1749631443149,1.6396,2774.8,2774.3,3.734]
[1749631443441,1.6396,2774.8,2774.5,10.0]
[1749631443635,0.18,2774.6,2774.5,10.0]
[1749631444003,0.18,2774.6,2774.5,3.734]
[1749631444204,0.18,2774.6,2774.5,36.14934454]
[1749631444446,0.18,2774.6,2774.5,39.75359755]
[1749631444630,0.18,2774.6,2774.5,49.75359755]
[1749631444832,1.508,2775.2,2774.5,46.14934454]
[1749631445010,1.508,2775.2,2774.8,25.879593]
[1749631445212,1.508,2775.2,2775.0,10.0]
[1749631445415,0.18,2775.1,2774.9,23.922894]
[1749631445625,0.18,2774.9,2774.8,24.177556]
[1749631446241,0.18,2774.9,2774.8,16.368918]
[1749631447443,0.18,2774.9,2774.8,9.024089]
[1749631447652,1.5494,2774.8,2774.1,4.335898]
[1749631447852,1.5494,2774.8,2774.2,10.0]
[1749631448148,6.28839554,2774.6,2774.2,10.0]
[1749631448349,1.5494,2774.5,2774.1,4.721]
[1749631448512,1.5494,2774.5,2774.1,0.988]
[1749631448847,0.18,2774.2,2774.1,0.988]
[1749631449348,0.18,2774.2,2774.0,13.066]
[1749631449349,1.7012,2774.2,2774.0,9.333]
[1749631449513,1.7012,2774.2,2774.1,0.988]
[1749631453811,1.7012,2774.2,2774.1,0.99256666]
[1749631454128,0.18,2774.2,2774.1,0.99256666]
[1749631455153,0.18,2774.2,2774.1,20.32356666]
[1749631458570,0.17903391,2774.2,2774.1,20.32356666]
[1749631459869,0.17903391,2774.2,2774.1,32.40728176]
[1749631460459,0.17903391,2774.2,2774.1,28.80250905]
[1749631460662,0.17903391,2774.2,2774.1,32.2816312]
[1749631460864,0.17903391,2774.2,2774.1,32.28163084]
[1749631461176,4.7,2775.1,2774.1,32.28162988]
[1749631461323,0.18,2774.8,2774.6,10.0]
[1749631461661,0.18,2774.8,2774.6,13.733]
[1749631464332,0.18,2774.8,2774.6,3.733]
[1749631467871,0.18,2774.8,2774.5,3.733]
[1749631468064,12.7126722,2775.2,2774.5,3.733]
[1749631468364,0.18,2774.6,2774.5,3.733]
[1749631468780,0.18,2774.6,2774.5,4.06904361]
[1749631468933,0.18,2774.6,2774.5,3.733]
[1749631469344,0.18,2774.6,2774.5,4.06904985]
[1749631469570,0.18,2774.6,2774.5,3.733]
[1749631469881,0.18,2774.6,2774.5,4.40509964]
[1749631470082,0.18,2774.6,2774.5,4.06904983]
[1749631470454,0.18,2774.6,2774.5,4.40510028]
[1749631470749,0.18,2774.6,2774.5,4.40509962]
[1749631471078,0.18,2774.6,2774.5,4.40510046]
[1749631471274,0.18,2774.6,2774.5,4.06904983]
[1749631471838,0.18,2774.6,2774.5,4.27067283]
[1749631472173,0.18,2774.6,2774.5,4.07361584]
[1749631472575,0.18,2774.6,2774.5,4.27523758]
[1749631472777,0.18,2774.6,2774.5,4.61127509]
[1749631472982,0.18,2774.6,2774.5,4.07361584]
[1749631473880,0.18,2774.6,2774.5,4.40965325]
[1749631474182,1.7287,2774.6,2774.5,1.32761584]
[1749631474381,15.36888014,2774.6,2774.5,1.32761584]
[1749631474554,25.36888014,2774.6,2774.5,1.32761584]
[1749631474742,26.99455234,2774.6,2774.5,1.32761584]
[1749631474948,25.91888014,2774.6,2774.5,1.32761584]
[1749631475297,27.34803481,2774.6,2774.5,1.32761584]
[1749631476388,27.34812875,2774.6,2774.5,1.32761584]
[1749631480197,21.06968679,2774.6,2774.5,1.32761584]
[1749631480455,19.64053212,2774.6,2774.5,1.32761584]
[1749631481265,21.06968679,2774.6,2774.5,1.32761584]
[1749631481573,20.20856887,2774.6,2774.5,1.32761584]
[1749631481769,21.06949691,2774.6,2774.5,1.32761584]
[1749631485410,10.55,2774.5,2773.8,9.331]
[1749631485707,0.18,2774.2,2773.9,0.988]
[1749631485917,0.86092804,2774.1,2773.9,0.988]
[1749631486212,11.5475,2774.3,2774.0,0.988]
[1749631486381,0.860487,2774.2,2774.0,0.988]
[1749631486700,1.04048413,2774.1,2773.8,9.331]
[1749631486901,0.86048413,2774.0,2773.9,0.988]
[1749631487409,17.40572609,2774.0,2773.9,0.988]
[1749631487602,31.50730857,2774.0,2773.9,0.988]
[1749631487904,30.43170341,2774.0,2773.9,0.988]
[1749631488279,30.95693741,2774.0,2773.9,0.988]
[1749631488488,10.0,2773.9,2772.7,0.18]
[1749631488689,0.18,2772.9,2772.8,0.3602]
[1749631488875,0.18,2772.9,2772.8,6.562046]
[1749631489075,0.18,2772.9,2772.6,13.41905377]
[1749631489305,0.18,2772.9,2772.6,3.96042523]
[1749631489603,0.18,2772.9,2772.8,5.799482]
[1749631489765,0.18,2772.9,2772.8,9.531482]
[1749631489963,0.18,2772.9,2772.8,3.732]
[1749631491768,0.18,2772.9,2772.8,6.842443]
[1749631492165,0.18,2772.9,2664.7,0.17326284]
[1749631492166,0.18,2772.9,2772.2,3.60724312]
[1749631492394,0.18,2772.9,2772.1,10.3602]
[1749631492395,0.18,2772.9,2772.5,12.772249]
[1749631492580,10.97844196,2773.4,2772.6,3.733]